Cogmind - Beta 16 @@@ ROGUE MODE // 2025.12.28 @ 15:47:40 Player: PE-P51 Result: Destroyed by Y-45 Defender with Heavy Assault Rifle Performance ------------- Evolutions (1) 500 Regions Visited (3) 600 Robots Destroyed (50) 250 Value Destroyed (990) 990 Prototype IDs (2) 40 Alien Tech Used (0) 0 Bonus (91) 91 TOTAL SCORE: 2471 Bonus ------- High Alert Combat Kills 56 Follower Combat Kills 35 Cogmind --------- Core Integrity 0/400 Matter 206/300 Energy 136/140 System Corruption 16% Temperature Cool (2) Movement Treading (160) Location -9/Materials Parts ------- > --- POWER (1) -------- Light Deuterium Engine > --- PROPULSION (3) --- Light Treads Improved Treads > --- UTILITY (3) ------ Small Storage Unit > --- WEAPON (2) ------- Beamcaster Autogun > --- INVENTORY (8) ---- Light Deuterium Engine Light Angular Momentum Engine Improved Flight Unit Improved Flight Unit Improved Flight Unit Improved Flight Unit Light Assault Rifle Missile Launcher Peak State ------------ > --- POWER ------------ Light Angular Momentum Engine > --- PROPULSION ------- Light Treads Light Treads Light Treads > --- UTILITY ---------- Improved Heat Sink Small Storage Unit > --- WEAPON ----------- Assault Rifle Heavy Assault Rifle > --- INVENTORY -------- Ion Engine Light Treads Aluminum Leg Beamcaster Assault Rifle Assault Rifle Rocket Launcher Hammer [Rating: 16] Favorites ----------- Power Ion Engine Engine Ion Engine Propulsion Light Treads Treads Light Treads Leg Aluminum Leg Flight Unit Improved Flight Unit Utility Small Storage Unit Device Improved Heat Sink Storage Small Storage Unit Protection Light Armor Plating Weapon Assault Rifle Energy Gun Beamcaster Ballistic Gun Assault Rifle Launcher Rocket Launcher Impact Weapon Hammer Build | -11 -10 -10 -9 ------- Run | Yrd Mat Min Mat Slots Evolved 2 | . . . 2 Power . | . . . . Propulsion 1 | . . . 1 Utility 1 | . . . 1 Weapon . | . . . . Parts Attached 27 | . 5 2 20 Power 4 | . . 1 3 Engine 4 | . . 1 3 Core . | . . . . Reactor . | . . . . Propulsion 10 | . 2 . 8 Treads 7 | . . . 7 Leg 2 | . 2 . . Wheel . | . . . . Hover . | . . . . Flight 1 | . . . 1 Utility 3 | . 1 1 1 Device 1 | . . 1 . Storage . | . . . . Processor . | . . . . Hackware . | . . . . Protection 2 | . 1 . 1 Artifact . | . . . . Weapon 10 | . 2 . 8 Energy Gun 1 | . . . 1 Energy Cannon . | . . . . Ballistic Gun 7 | . 2 . 5 Ballistic Cannon . | . . . . Launcher 1 | . . . 1 Special Weapon . | . . . . Impact Weapon 1 | . . . 1 Slashing Weapon . | . . . . Piercing Weapon . | . . . . Special Melee Weapon . | . . . . Unidentified Prototypes 2 | . . . 2 Parts Lost 9 | . 1 . 8 Power . | . . . . Propulsion 4 | . . . 4 Utility 3 | . 1 . 2 Weapon 2 | . . . 2 Highest Loss Streak 3 | . 1 . 3 To Critical Strikes . | . . . . Average Backups 7 | 6 7 8 7 Power 1 | 1 1 1 1 Propulsion 2 | 4 2 2 2 Utility . | . . . . Weapon 3 | 1 3 4 3 Tool/Special . | . . . . Unused Backups 18 | . 6 4 8 Power 3 | . . 2 1 Propulsion 8 | . 4 . 4 Utility . | . . . . Weapon 6 | . 2 1 3 Tool/Special 1 | . . 1 . Average Slot Usage (%) 84 | . 92 86 80 Engine 12 | . 14 14 11 Treads 13 | . . . 27 Leg 14 | . 28 28 1 Device 3 | . . 1 5 Storage 12 | . 14 14 11 Protection 2 | . 7 . 2 Ballistic Gun 23 | . 24 28 20 Peak Build Rating 16 | 6 7 14 16 Average Rating 10 | 6 6 7 14 On Entrance 8 | 6 6 6 14 Avg Prop Armor Cover (%) 8 | . . . 8 Naked Turns . | . . . . Heaviest Build 22 | 13 17 19 22 Greatest Support 63 | 20 20 20 63 Greatest Overweight (x) . | . . . . Average Overweight (x) . | . . . . Largest Inventory Capacity 8 | 8 8 8 8 Average Capacity 8 | 8 8 8 8 Most Carried 8 | 6 8 8 8 Average Carried 7 | 6 7 7 7 Final Capacity 8 | 8 8 8 8 Final Carried 8 | 6 8 8 8 Class Distribution -------------------- 76% | Mutant 23% | Scavenger-Mutant Dominant Class ---------------- Mutant | -10/Materials Mutant | -10/Mines Mutant | -9/Materials Resources | -11 -10 -10 -9 ----------- Run | Yrd Mat Min Mat Matter Collected 1228 | 200 153 62 813 Remotely . | . . . . Salvage Created 1187 | . 245 39 903 Parts 88 | . 9 2 77 Haulers Intercepted 2 | . . . 2 Recyclers Shooed 1 | . . 1 . Parts Field Recycled . | . . . . Retrieved Matter . | . . . . Parts Self-Destructed . | . . . . Prevented . | . . . . Parts Restored . | . . . . Kills | -11 -10 -10 -9 ------- Run | Yrd Mat Min Mat Combat Hostiles Destroyed 36 | . 6 1 29 Melee 1 | . . . 1 Guns 22 | . 6 1 15 AOE 13 | . . . 13 Classes Destroyed 10 | . 1 . 9 Worker 1 | . . . 1 Builder 4 | . . . 4 Tunneler 1 | . . . 1 Hauler 2 | . . . 2 Recycler 2 | . . . 2 Operator 2 | . . . 2 Watcher 2 | . . . 2 Swarmer 18 | . . . 18 Grunt 14 | . 6 1 7 Sentry 4 | . . . 4 Best Kill Streak 7 | . 3 1 7 Combat Bots Only 5 | . 3 1 5 Max Kills in Single Turn 4 | . 1 1 4 Gunslinging 1 | . . . 1 Exploded 4 | . . . 4 Melee 1 | . . . 1 Uniques/NPCs Destroyed . | . . . . Combat | -11 -10 -10 -9 -------- Run | Yrd Mat Min Mat Hostile Shots Fired 225 | . 20 6 199 Missed 56 | . 3 1 52 Hits 169 | . 17 5 147 Projectile 169 | . 17 5 147 Critical Strikes 5 | . 1 . 4 Damage Taken 2430 | . 271 57 2102 Core 465 | . 40 24 401 Absorbed by Shields . | . . . . Core Remaining (%) 87 | 100 . 74 . Volleys Fired 120 | . 18 5 97 Largest 2 | . 2 2 2 Hottest 98 | . 40 40 98 Shots Fired 224 | . 36 10 178 Gun 209 | . 36 10 163 Cannon . | . . . . Launcher 15 | . . . 15 Special . | . . . . Kinetic 205 | . 36 10 159 Thermal 4 | . . . 4 Explosive 15 | . . . 15 Electromagnetic . | . . . . Robot Hit Streak 14 | . 10 4 14 Robot Miss Streak 4 | . 2 1 4 Penetration Max . | . . . . Secondary Targets 3 | . . . 3 Max Gunslinging Chain 1 | . . . 1 Shots Hit Robots 135 | . 21 7 107 Core Hits 72 | . 13 2 57 Critical Kills . | . . . . Critical Parts Destroyed 1 | . . . 1 Critical Strikes 2 | . . . 2 Burn 1 | . . . 1 Destroy 1 | . . . 1 Melee Attacks . | . . . . Impact . | . . . . Slashing . | . . . . Piercing . | . . . . Sneak Attacks . | . . . . Combat Hostiles . | . . . . Follow-up Attacks . | . . . . Damage Inflicted 3044 | . 270 91 2683 Guns 1919 | . 270 82 1567 Cannons . | . . . . Explosions 1065 | . . . 1065 Melee . | . . . . Ramming 60 | . . 9 51 Kinetic 1854 | . 270 82 1502 Thermal 65 | . . . 65 Explosive 1065 | . . . 1065 Electromagnetic . | . . . . Impact . | . . . . Slashing . | . . . . Piercing . | . . . . Highest Corruption 16 | . 1 1 16 Average Corruption 5 | . 1 1 13 Corruption Purged . | . . . . Corruption Blocked . | . . . . Effects 35 | . 2 5 28 Message Errors 8 | . 1 . 7 Matter Fused 8 | . . 2 6 Heat Flow Errors 5 | . . 1 4 Energy Discharges 1 | . . . 1 Data Loss (minor) 7 | . . 1 6 Data Loss (major) 1 | . . 1 . Misfires 2 | . . . 2 Alerts 1 | . 1 . . Misdirections 1 | . . . 1 Weapon Failures 1 | . . . 1 Overload Shots . | . . . . Overflow Damage 70 | . . . 70 Projectiles . | . . . . Explosions 70 | . . . 70 Melee . | . . . . Knockbacks . | . . . . Impact . | . . . . Kinetic . | . . . . Secondary . | . . . . Self-Inflicted Damage 116 | . . . 116 Shots 4 | . . . 4 Rammed 34 | . . . 34 Targets Rammed 37 | . . 3 34 Kicked 3 | . . 3 . Crushed . | . . . . Highest Temperature 198 | . 20 117 198 Average Temperature 36 | . 8 61 40 Received Heat Transfer 624 | . 147 30 447 Siege Activations . | . . . . Martial Activations . | . . . . Shielding Activations . | . . . . Robots Disrupted . | . . . . Combat Hostiles . | . . . . Robots Corrupted . | . . . . Combat Hostiles . | . . . . Parts Fried . | . . . . Impact Corruptions . | . . . . Robots Melted . | . . . . Combat Hostiles . | . . . . Parts Melted 1 | . . . 1 Heat Transferred 185 | . . . 185 Parts Sabotaged . | . . . . Parts Stolen . | . . . . Parts Stripped . | . . . . Power Chain Reactions . | . . . . Alert | -11 -10 -10 -9 ------- Run | Yrd Mat Min Mat Maximum Alert Level 2 | . . . 2 Low Security (%) 64 | 100 100 100 30 Level 1 22 | . . . 43 Level 2 13 | . . . 25 Level 3 . | . . . . Level 4 . | . . . . Level 5 . | . . . . High Security . | . . . . Max Security . | . . . . Peak Influence 454 | . 115 33 454 Initial 33 | . . 33 . Average 128 | . 39 2 241 Influence Increases 1215 | . 165 52 998 Destroy 0b10 Robot/C 740 | . 120 40 580 Destroy 0b10 Robot/NC 70 | . . . 70 Destroy Leader 168 | . 30 10 128 Allied During Kill 2 | . . 2 . Successful Hack 4 | . . . 4 Disable Machine 30 | . . . 30 Destroy Structure 96 | . . . 96 Lose Combat Pursuer 105 | . 15 . 90 Influence Decreases 827 | . 80 137 610 Entered New Map 52 | . . 52 . Time Decay 515 | . 70 65 380 Lost Part 90 | . 10 . 80 Lost Ally 20 | . . 20 . Purge Threat 150 | . . . 150 Squads Dispatched 5 | . 1 . 4 Investigation . | . . . . Extermination . | . . . . Reinforcement 5 | . 1 . 4 Assault . | . . . . Garrison . | . . . . Intercept . | . . . . Searches Triggered . | . . . . Construction Impeded 1 | . . . 1 Haulers Reinforced . | . . . . Active Scanning Responses . | . . . . Cargo Convoy Interrupts . | . . . . Stealth | -11 -10 -10 -9 --------- Run | Yrd Mat Min Mat Distress Signals 4 | . 2 . 2 Communications Jammed . | . . . . Distress Signals . | . . . . Times Spotted 61 | . 8 1 52 Peak Tracking Total 7 | . 3 1 7 Tactical Retreats 4 | . 1 . 3 Traps | -11 -10 -10 -9 ------- Run | Yrd Mat Min Mat Traps Triggered 3 | . 1 . 2 Indirectly . | . . . . Trap Hack Attempts . | . . . . Triggered . | . . . . Disarmed . | . . . . Reprogrammed . | . . . . Reused . | . . . . Traps Extracted . | . . . . Installed . | . . . . Triggered . | . . . . Machines | -11 -10 -10 -9 ---------- Run | Yrd Mat Min Mat Machines Disabled 2 | . . . 2 Max in Single Turn 1 | . . . 1 Machines Repaired . | . . . . Machines Dismantled . | . . . . Machines Sabotaged . | . . . . Overloaded Fab Kills . | . . . . Hacking | -11 -10 -10 -9 --------- Run | Yrd Mat Min Mat Machines Accessed 5 | . 1 . 4 Terminals 3 | . 1 . 2 Fabricators . | . . . . Repair Stations 1 | . . . 1 Recycling Units . | . . . . Scanalyzers 1 | . . . 1 Garrison Access . | . . . . Total Hacks 18 | . 1 . 17 Successful 11 | . 1 . 10 Failed 7 | . . . 7 Catastrophic . | . . . . Database Lockouts . | . . . . Manual 3 | . . . 3 Terminals 7 | . 1 . 6 Fabricators . | . . . . Repair Stations 4 | . . . 4 Recycling Units . | . . . . Scanalyzers 7 | . . . 7 Garrison Access . | . . . . Terminal Hacks 4 | . 1 . 3 Robot Analysis 1 | . . . 1 Alert Level 2 | . 1 . 1 Unreport Threat 1 | . . . 1 Fabricator Hacks . | . . . . Repair Station Hacks 2 | . . . 2 Scan Component 2 | . . . 2 Recycling Unit Hacks . | . . . . Scanalyzer 5 | . . . 5 Insert Component 2 | . . . 2 Analyze 2 | . . . 2 Retrieve Study 1 | . . . 1 Garrison Access Hacks . | . . . . Unauthorized Hacks . | . . . . Terminals . | . . . . Fabricators . | . . . . Repair Stations . | . . . . Recycling Units . | . . . . Scanalyzers . | . . . . Garrison Access . | . . . . Data Cores Recovered . | . . . . Used . | . . . . Hacking Detections 4 | . . . 4 Full Trace Events 2 | . . . 2 Feedback Events . | . . . . Feedback Blocked . | . . . . Robot Schematics Acquired . | . . . . Robots Built . | . . . . Authchips . | . . . . Time . | . . . . Total Robot Build Rating . | . . . . Part Schematics Acquired 1 | . . . 1 Parts Built . | . . . . Authchips . | . . . . Time . | . . . . Total Part Build Rating . | . . . . Part Studies Acquired 1 | . . . 1 Parts Repaired . | . . . . Time . | . . . . Parts Recycled . | . . . . Recycled Matter . | . . . . Retrieved Matter . | . . . . Retrieved Components . | . . . . Parts Scanalyzed 2 | . . . 2 Part Schematics Acquired 1 | . . . 1 Parts Damaged . | . . . . Bothacking | -11 -10 -10 -9 ------------ Run | Yrd Mat Min Mat Used RIF Installer . | . . . . Robots Hacked . | . . . . Non-combat . | . . . . Combat . | . . . . Robot Hacks Applied . | . . . . Relay Couplers Released . | . . . . Fabnet Peak Effective % . | . . . . Robots Rewired . | . . . . Allies Hacked . | . . . . Hacks Repelled . | . . . . Allies | -11 -10 -10 -9 -------- Run | Yrd Mat Min Mat Total Allies 1 | . . 1 . Largest Group 1 | . . 1 . Highest-Rated Group 31 | . . 31 . Highest-Rated Ally 31 | . . 31 . Total Orders . | . . . . Ally Attacks 7 | . . 7 . Total Damage 81 | . . 81 . Kills 1 | . . 1 . Allies Corrupted . | . . . . Allies Melted . | . . . . Intel | -11 -10 -10 -9 ------- Run | Yrd Mat Min Mat Active Infowar (turns) . | . . . . Robot Analysis Total 1 | . . . 1 Derelict Logs Recovered 2 | . . 2 . Drone Launches . | . . . . Drone Recoveries . | . . . . Exploration | -11 -10 -10 -9 ------------- Run | Yrd Mat Min Mat Turns Passed 2257 | 8 278 826 1145 Spaces Moved 1334 | 7 167 668 492 Core . | . . . . Treads 469 | . . . 469 Legs 865 | 7 167 668 23 Wheels . | . . . . Hover . | . . . . Flight . | . . . . Fastest Speed 120 | 120 120 120 120 Average Speed 134 | 120 120 120 158 Slowest Speed 160 | 120 120 120 160 Overloaded Moves . | . . . . Propulsion Burnouts . | . . . . Robots Hopped . | . . . . Potential Cave-ins . | . . . . Cave-ins Triggered 1 | . . . 1 Exploration Rate (%) 44 | 3 28 96 51 Regions Visited 3 Branch Regions 1 Pre-discovered Areas . | . . . . Known Exits Taken . | . . . . Unknown Exits Taken 3 | 1 1 1 . Scrap Searched 1 | . . 1 . Spaces Dug . | . . . . Terrain Destroyed 118 | . . . 118 Melee . | . . . . Projectile . | . . . . AOE 118 | . . . 118 Terrain Rammed . | . . . . Walls Destroyed . | . . . . Machines Disabled . | . . . . Actions | -11 -10 -10 -9 --------- Run | Yrd Mat Min Mat Total 1580 | 6 209 682 683 Wait 15 | . 10 1 4 Move 1331 | 6 166 667 492 Hop . | . . . . Pick Up 19 | . 5 2 12 Fast Attach 5 | . 1 1 3 Attach 4 | . . . 4 Detach . | . . . . Swap 27 | . 4 1 22 Drop 22 | . 5 2 15 Fire 120 | . 18 5 97 Melee . | . . . . Ram . | . . . . Kick 3 | . . 3 . Crush 34 | . . . 34 Escape Stasis . | . . . . Rewire . | . . . . Trap . | . . . . Miscellaneous . | . . . . Route ------- -11/Scrapyard -10/Materials (discovered 2 exits: [*Min x2]) -10/Mines (discovered 2 exits: *Mat x2) -9/Materials (discovered 2 exits: [*Mat] / [*Min]) History --------- Turn | Location | Event 1 | -11/Scrapyard | Discovered new exit (range 3) 9 | -11/Scrapyard | Entered Materials 137 | -10/Materials | Discovered new exit (range 16) 281 | -10/Materials | Discovered new exit (range 10) 287 | -10/Materials | Entered Mines 313 | -10/Mines | Build established: Mutant 329 | -10/Mines | Received a Rocket Launcher from a helpful Derelict 427 | -10/Mines | Learned Materials security intel 474 | -10/Mines | Learned Materials interactive machine intel 608 | -10/Mines | Discovered new exit (range 5) 632 | -10/Mines | Discovered new exit (range 7) 832 | -10/Mines | Received a Mining Laser from a helpful Derelict 1113 | -10/Mines | Entered Materials 1113 | -9/Materials | Evolved 2 slots: Propulsion x1, Utility x1 1115 | -9/Materials | Loaded intel: 18 interactive machine locations 1295 | -9/Materials | Build established: Scavenger-Mutant 1387 | -9/Materials | Discovered new exit (range 15) 1668 | -9/Materials | Crushed by falling debris 1668 | -9/Materials | Core integrity fell below 50% 1668 | -9/Materials | System corruption reached 10% 1699 | -9/Materials | Lost 3 parts (1n1u1w) 1821 | -9/Materials | Build established: Mutant 2094 | -9/Materials | Discovered new exit (range 16) 2131 | -9/Materials | Core integrity fell below 20% 2173 | -9/Materials | Lost 3 parts (1n1u1w) 2258 | -9/Materials | Destroyed by Y-45 Defender with Heavy Assault Rifle Last Messages --------------- Scanning Imp. Treads... Ready to Repair: Imp. Treads Rating: 2 Time: 32 02210_ System corrupted: Heat flow error (+104). 02210_ Acquired Lgt. Assault Rifle. 02223_ U-05 Engineer lays Concrete. 02224_ Triggered Shock Trap. 02224_ The floor emits a surge of raw power. 02224_ System corrupted (+2). 02224_ U-05 Engineer lays Concrete. 02225_ U-05 Engineer builds a Wall. 02229_ U-05 Engineer lays Concrete. 02231_ U-05 Engineer builds a Wall. 02232_ V|OJ=S7LN#=NEIDFM#X/ 02236_ U-05 Engineer lays Concrete. 02249_ Dropped Rocket Launcher. 02249_ Acquired Missile Launcher. 02250_ System corrupted: Matter fused (-5). Map ----- +----------------------------------------------------+ | | | | | | | | | | | | | | | | | | | | | | | | | | | | | | | | | | | | | ??### ################???????????????????????????? | | ### # ???????????????????????????? | | # # "" # "" """ #??"S??????????????????????? | | # """ # "T """ #??"""?????????????????????? | | ### "" # "" """ #???""?????????????????????? | | ## # #??????????????????????????? | | ### # #####+#############+######+###???????????? | | = @ ????????? | | / ^^ Y????????? | | = ^ a ????????? | | ## ##### ##### ############## ?????????? | | ?#########?# #???# ] #????????????????????????? | | ???????????# #???#!!]]**#????????????????????????? | | ???????????# #???#!! ]**#????????????????????????? | | ???????????# #???########????????????????????????? | | ???????????# #???????????????????????????????????? | | ???????????#[#???????????????????????????????????? | | ???????????#=#???????????????????????????????????? | | ???????????#!#???????????????????????????????????? | | ???????????# #????????????????????"T"????????????? | | ???????????# #???????????????????????????????????? | | ?########??#=#???????????????????????????????????? | | ?#!! *==#??# #???????????????????????????????????? | | ?#!!**==#??# #???????????????????????????????????? | | ?# =#??# #???????????????????????????????????? | | ?### = #### #???????????????????????????????????? | | ?### *[ #???????????????????????????????????? | | ?+ =#####+##??????????????????"???????????????? | | ?### # #??????????????????T???????????????? | | ???# # #??????????????????"???????????????? | | ???# # """ #??????????????????????????????????? | | ???# # """ #?????????""???""??????????????????? | +----------------------------------------------------+ Best States ------------- Heat Dissipation 42 Energy Generation 18 Energy Capacity 280 Matter Stores 300 Matter Capacity 300 Sight Range 16 Terrain Scan Density 10 Armor Coverage 150 Evasion (%) 55 Recoil Reduction 3 Item Schematics ----------------- Lgt. Angular Momentum Engine | -9/Materials | Scanalyzed Robot Schematics ------------------ None Fabricated ------------ Nothing Repaired ---------- Nothing Studied --------- Autogun | -9/Materials | Hacked Alien Tech Used ----------------- None Achievements -------------- None Challenges ------------ None Game ------ Seed VampiricThermicKit Manual? 0 Play Time 00:17:39 Cumulative 241.8 hours Start 2025.12.28 @ 15:17:39 End 2025.12.28 @ 15:47:40 Sessions 1 Manual Loads 0 Difficulty Rogue Special Mode None Game No. 324 Rogue 323 Adventurer 1 Explorer 0 Win Type - Total 2 Types 1/0/0/1/0/0/0/0/0/0 Lore% 71 Gallery% 64 Achievement% 55 Wizard Run 0 Options --------- Layout 0 ASCII 0 Keyboard 0 Movement Numpad Keybinds 0 Fullscreen 1 Font 24/Smallcaps Map View 76x50 Zoom Use 0% Tactical HUD 1 Map Filters NONE Filters NONE Steam 1 RUN: 8272f064-2062-48d5-b661-f5050a585888